bitfinex-derivatives/quotes_ETHF0:USTF0_20250329
["timestamp","ask_amount","ask_price","bid_price","bid_amount"]
[1743280598708,1.09596,1825.6,1825.4,4.75603]
[1743280598908,1.09596,1825.6,1825.5,1.4165]
[1743280599312,1.09592,1825.7,1825.5,2.51249]
[1743280599603,1.09592,1825.7,1825.6,1.4165]
[1743280600299,1.096,1825.5,1825.4,3.66]
[1743280600501,1.096,1825.5,1825.4,5.131]
[1743280600697,3.2078,1826.3,1825.4,7.631]
[1743280601000,1.0955,1826.4,1826.0,3.2078]
[1743280601205,2.48118,1826.4,1826.1,4.4203]
[1743280601401,1.3857,1826.4,1826.1,5.8913]
[1743280601608,1.09558,1826.2,1826.1,1.471]
[1743280602013,2.48128,1826.2,1826.1,1.471]
[1743280603008,1.3857,1826.2,1826.1,1.471]
[1743280603212,0.7157,1826.3,1826.1,2.56662]
[1743280603408,2.1014,1826.3,1826.1,2.5666]
[1743280603603,2.1014,1826.3,1826.2,1.4889]
[1743280604216,0.7209,1826.5,1826.2,1.4889]
[1743280604413,1.4758,1826.4,1826.2,2.58446]
[1743280604713,1.4758,1826.4,1826.3,1.4889]
[1743280605214,1.4758,1826.4,1826.0,3.96932121]
[1743280605215,1.09552,1826.3,1826.0,5.06497121]
[1743280605406,1.09552,1826.3,1826.1,1.4889]
[1743280605606,1.4758,1826.2,1826.1,1.4889]
[1743280606108,2.57138,1826.2,1826.1,1.4889]
[1743280606307,3.26808,1826.2,1826.1,1.4889]
[1743280607614,2.1725,1826.2,1826.1,1.4889]
[1743280607813,3.26808,1826.2,1826.1,1.4889]
[1743280609416,3.26808,1826.2,1826.0,0.76152121]
[1743280609417,1.09564,1826.1,1826.0,0.00822121]
[1743280609714,3.14384,1826.1,1826.0,0.00822121]
[1743280610313,3.14384,1826.1,1826.0,1.44862121]
[1743280611716,3.14384,1826.1,1826.0,0.00822121]
[1743280612716,4.5482,1826.1,1825.5,3.2078]
[1743280612915,1.09592,1825.7,1825.5,4.7072]
[1743280613120,1.09592,1825.7,1825.6,1.4994]
[1743280614220,1.78262,1825.7,1825.6,1.4994]
[1743280615016,0.6867,1825.7,1825.6,1.4994]
[1743280615322,1.78258,1825.7,1825.6,1.4994]
[1743280616525,0.00822121,1825.8,1825.6,1.4994]
[1743280616716,0.00822121,1825.8,1825.7,5.03328]
[1743280617033,0.00822121,1825.8,1825.7,9.44088]
[1743280618726,1.10404121,1825.8,1825.7,4.691]
[1743280618933,1.10404121,1825.8,1825.7,2.2002]
[1743280619329,0.00822121,1825.8,1825.7,6.50388]
[1743280620230,1.10404121,1825.8,1825.7,5.408]
[1743280620430,1.10404121,1825.8,1825.7,1.4706]
[1743280621733,0.00822121,1825.8,1825.5,6.86702121]
[1743280622033,1.09594,1825.6,1825.5,6.86702121]
[1743280622828,1.09594,1825.6,1825.5,8.25852121]
[1743280623230,1.09594,1825.6,1825.5,4.60752121]
[1743280623428,1.83524,1825.6,1825.5,3.21602121]
[1743280623825,1.83524,1825.6,1825.5,0.00822121]
[1743280624025,10.0951,1825.6,1825.0,3.2078]
[1743280624235,5.94796,1825.4,1824.8,6.8558]
[1743280624439,1.09632,1825.0,1824.8,4.5993]
[1743280624637,1.09632,1825.0,1824.9,1.3915]
[1743280629340,0.7381,1825.3,1825.1,1.09624]
[1743280629540,0.7381,1825.3,1824.9,1.3915]
[1743280629541,0.7161,1825.5,1825.2,1.4433]
[1743280629843,3.21602121,1825.8,1825.3,1.09612]
[1743280630143,1.096,1825.5,1825.4,1.4433]
[1743280631547,2.5465,1825.5,1825.4,1.4433]
[1743280631751,3.21602121,1825.8,1825.4,1.4433]
[1743280631939,1.096,1825.5,1825.4,1.4433]
[1743280632839,11.04721,1825.6,1825.1,0.6925]
[1743280633042,1.09618,1825.2,1825.1,0.6925]
[1743280633341,1.09618,1825.2,1825.0,0.696]
[1743280633342,1.09624,1825.1,1825.0,0.696]
[1743280634150,2.53473,1825.2,1825.0,2.1576]
[1743280634446,2.53473,1825.2,1825.1,1.4616]
[1743280634836,1.4212,1825.3,1825.1,1.4616]
[1743280634837,1.79056,1825.3,1825.1,1.4616]
[1743280635146,1.79056,1825.3,1825.1,2.2043]
[1743280635147,0.6944,1825.3,1825.1,2.2043]
[1743280635348,1.09613,1825.3,1825.1,3.30052]
[1743280635548,1.09613,1825.3,1825.2,1.4616]
[1743280636251,2.53463,1825.3,1825.2,1.4616]
[1743280638648,0.7057,1825.5,1825.3,1.09607]
[1743280638845,0.7057,1825.5,1825.2,3.2078]
[1743280638846,1.09612,1825.3,1825.2,3.2078]
[1743280639048,1.4415,1825.4,1825.2,4.30398]
[1743280639245,2.53761,1825.4,1825.2,4.30398]
[1743280639841,1.09612,1825.3,1825.2,3.2078]
[1743280640246,1.09623,1825.2,1825.0,0.696]
[1743280640549,2.49213,1825.2,1825.0,1.79229]
[1743280641155,1.09624,1825.1,1825.0,0.696]
[1743280641348,1.09624,1825.1,1824.8,0.00822121]
[1743280641349,1.3959,1825.1,1824.8,3.21602121]
[1743280641543,1.09636,1824.9,1824.8,3.21602121]
[1743280642655,1.09636,1824.9,1824.8,4.31244121]
[1743280642849,1.09636,1824.9,1824.8,3.21602121]
[1743280643557,1.09636,1824.9,1824.8,4.31244121]
[1743280643751,1.09636,1824.9,1824.8,3.21602121]
[1743280644057,1.78106,1824.9,1824.8,3.21602121]
[1743280644353,1.78106,1824.9,1824.8,0.00822121]
[1743280644548,1.09636,1824.9,1824.8,0.00822121]
[1743280645156,2.47206,1824.9,1824.8,0.00822121]
[1743280645452,2.74108,1824.8,1824.3,3.2078]
[1743280645652,1.09666,1824.4,1824.3,7.5797]
[1743280645957,1.09666,1824.4,1824.3,3.9307]
[1743280647454,1.39502121,1824.5,1824.2,0.00822121]
[1743280647649,1.39502121,1824.5,1824.1,0.49875965]
[1743280647650,1.09678,1824.2,1824.1,0.49875965]
[1743280648057,3.88548,1824.2,1824.1,0.49875965]
[1743280649554,7.09328,1824.2,1824.1,0.49875965]
[1743280649762,1.09684,1824.1,1824.0,0.00822121]
[1743280649953,2.57494,1824.1,1824.0,0.00822121]
[1743280655457,1.09684,1824.1,1824.0,0.00822121]
[1743280655961,1.09684,1824.1,1824.0,1.46472121]
[1743280656860,2.46554,1824.1,1824.0,1.46472121]
[1743280657461,1.09684,1824.1,1824.0,1.46472121]
[1743280658162,2.46554,1824.1,1824.0,1.46472121]
[1743280661667,1.09684,1824.1,1824.0,1.46472121]
[1743280661962,1.09684,1824.1,1824.0,2.21712121]
[1743280667871,1.09684,1824.1,1824.0,1.46472121]
[1743280668166,2.74245,1823.9,1823.4,3.2078]
[1743280668368,2.74278,1823.7,1823.4,3.2078]
[1743280668562,1.5085,1823.6,1823.3,0.7395]
[1743280668868,1.09726,1823.4,1823.3,0.7395]
[1743280669863,2.60576,1823.4,1823.3,0.7395]
[1743280674072,1.09732,1823.3,1823.2,0.00822121]
[1743280674977,3.29422,1823.3,1823.2,0.00822121]
[1743280680268,3.29422,1823.3,1823.2,1.50712121]
[1743280683078,0.00822121,1823.5,1823.2,1.50712121]
[1743280683380,1.09732,1823.3,1823.2,1.50712121]
[1743280684875,1.09732,1823.3,1823.2,0.00822121]
[1743280685576,2.48522,1823.3,1823.2,0.00822121]
[1743280686782,1.09744,1823.1,1823.0,1.4386]
[1743280687581,3.23394,1823.1,1823.0,1.4386]
[1743280687779,3.23394,1823.1,1822.1,2.74501]
[1743280687780,7.8443,1823.1,1822.4,3.2078]
[1743280687984,1.09777,1822.6,1822.4,5.02505]
[1743280688174,1.09769,1822.7,1822.6,0.00548078]
[1743280689175,3.92829,1822.7,1822.6,0.00548078]
[1743280691982,1.09769,1822.7,1822.6,0.00548078]
[1743280692176,1.09767,1822.8,1822.6,2.14178078]
[1743280692373,3.2078,1823.0,1822.7,1.4428]
[1743280692779,1.09763,1822.8,1822.7,1.4428]
[1743280695485,1.4634,1823.1,1822.7,5.0958]
[1743280695987,1.09758,1822.9,1822.8,1.4489]
[1743280699782,1.09769,1822.7,1822.6,3.21328078]
[1743280699986,1.09769,1822.7,1822.6,0.00548078]
[1743280700791,4.30549,1822.7,1822.6,0.00548078]
[1743280701182,5.68419,1822.7,1822.6,0.00548078]
[1743280708391,2.47639,1822.7,1822.6,0.00548078]
[1743280708593,5.68419,1822.7,1822.6,0.00548078]
[1743280710485,2.47639,1822.7,1822.6,0.00548078]
[1743280712794,5.68419,1822.7,1822.6,0.00548078]
[1743280713796,4.30549,1822.7,1822.6,0.00548078]
[1743280714093,4.30549,1822.7,1822.6,0.72888078]
[1743280714790,2.56829,1822.7,1822.6,2.17318078]
[1743280716398,1.09758,1822.9,1822.7,1.09765]
[1743280716598,1.09758,1822.9,1822.8,1.4034]
[1743280719001,1.09769,1822.7,1822.6,0.72888078]
[1743280719302,1.09769,1822.7,1822.6,2.09488078]
[1743280719702,2.53109,1822.7,1822.6,2.09488078]
[1743280721508,3.2078,1823.1,1822.6,2.09488078]
[1743280721697,1.4334,1823.0,1822.7,1.366]
[1743280721902,1.09763,1822.8,1822.7,2.46364]
[1743280722101,1.09763,1822.8,1822.7,1.366]
[1743280723202,3.2078,1823.3,1822.8,2.74407]
[1743280723504,1.10545121,1823.5,1823.2,1.09738]
[1743280723695,1.10545121,1823.5,1823.3,1.78451]
[1743280724305,0.00822121,1823.5,1823.4,1.4829]
[1743280724503,1.10542121,1823.5,1823.4,1.4829]
[1743280724901,0.00822121,1823.5,1823.4,2.58016]
[1743280726404,1.10542121,1823.5,1823.4,1.4829]
[1743280726601,2.60812121,1823.5,1823.4,1.4829]
[1743280732810,1.51092121,1823.5,1823.0,3.2078]
[1743280733014,1.09735,1823.3,1823.2,1.3841]
[1743280734027,1.09735,1823.3,1823.2,2.48148]
[1743280734530,2.6086,1823.4,1823.2,2.48148]
[1743280734728,2.6086,1823.4,1823.3,1.4291]
[1743280735529,0.00822121,1823.5,1823.3,1.4291]
[1743280735729,1.37542121,1823.5,1823.3,2.52641]
[1743280735925,1.37542121,1823.5,1823.4,1.4291]
[1743280736629,2.47262121,1823.5,1823.4,1.4291]
[1743280747339,2.74317,1823.4,1822.9,3.9332]
[1743280747533,3.2078,1823.1,1822.6,4.93127078]
[1743280747733,0.7464,1823.0,1822.8,1.4725]
[1743280747932,1.09756,1822.9,1822.8,1.4725]
[1743280748434,3.24476,1822.9,1822.8,1.4725]
[1743280748938,1.09769,1822.7,1822.6,3.21328078]
[1743280749136,4.30549,1822.7,1822.6,1.47798078]
[1743280749336,1.09769,1822.7,1822.6,1.47798078]
[1743280750136,1.4141,1822.8,1822.7,1.09769]
[1743280750340,1.4141,1822.8,1822.6,2.57567078]
[1743280750341,2.51173,1822.8,1822.6,2.57567078]
[1743280750839,2.51173,1822.8,1822.7,1.4172]
[1743280752939,1.09769,1822.7,1822.6,0.00548078]
[1743280753141,2.59519,1822.7,1822.6,1.39998078]
[1743280753546,1.4975,1822.7,1822.6,1.39998078]
[1743280753747,2.59519,1822.7,1822.6,1.39998078]
[1743280758748,2.59519,1822.7,1822.6,0.00548078]
[1743280758942,5.80299,1822.7,1822.6,0.00548078]
[1743280762755,9.45399,1822.7,1822.6,0.00548078]
[1743280763144,5.80299,1822.7,1822.6,0.00548078]
[1743280763349,2.59519,1822.7,1822.6,0.00548078]
[1743280764541,2.59519,1822.7,1822.2,0.6969]
[1743280764542,1.09787,1822.4,1822.3,1.4576]
[1743280765446,2.47437,1822.4,1822.3,1.4576]
[1743280765949,4.5843,1822.4,1822.0,3.652]
[1743280766154,1.3765,1822.3,1822.1,1.5102]
[1743280766356,1.09799,1822.2,1822.1,1.5102]
[1743280769652,0.00822121,1822.5,1822.4,1.09787]
[1743280769858,1.4932,1822.9,1822.8,1.09763]
[1743280770057,1.77994,1823.0,1822.8,1.09759]
[1743280770266,1.09754,1823.0,1822.9,2.1758]
[1743280771152,1.78034,1823.0,1822.9,1.4231]
[1743280771352,3.25034,1823.0,1822.9,1.4231]
[1743280773161,1.09754,1823.0,1822.9,1.4231]
[1743280774259,2.50274,1823.0,1822.9,1.4231]
[1743280775157,1.09754,1823.0,1822.9,1.4231]
[1743280775361,0.00822121,1823.1,1823.0,1.0975]
[1743280775562,0.00822121,1823.1,1823.0,0.7125]
[1743280775864,0.00822121,1823.1,1823.0,1.81]
[1743280776261,0.00822121,1823.1,1823.0,3.2345]
[1743280777665,0.00822121,1823.1,1823.0,6.8855]
[1743280778872,1.10566121,1823.1,1823.0,5.788]
[1743280779971,0.00822121,1823.1,1823.0,6.8855]
[1743280780174,0.00822121,1823.1,1823.0,3.2345]
[1743280781176,1.10566121,1823.1,1823.0,2.137]
[1743280786575,1.10566121,1823.1,1823.0,3.2345]
[1743280786878,1.10566121,1823.1,1823.0,2.137]
[1743280789077,1.10566121,1823.1,1823.0,1.4245]
[1743280789268,1.09756,1822.9,1822.8,0.00822121]
[1743280789474,1.09756,1822.9,1822.8,1.44812121]
[1743280789670,1.09756,1822.9,1822.8,0.00822121]
[1743280789871,2.50316,1822.9,1822.8,0.00822121]
[1743280790177,2.50316,1822.9,1822.1,2.74504]
[1743280790178,14.4286,1822.9,1821.6,1.8193055]
[1743280790394,1.09823,1821.8,1821.7,1.4399]
[1743280790880,1.09853,1821.3,1821.2,3.2078]
[1743280791978,1.10674121,1821.4,1821.2,3.2078]
[1743280792169,1.09853,1821.3,1821.2,3.2078]
[1743280792974,1.41382121,1821.4,1821.1,1.4399]
[1743280793179,1.09856,1821.3,1821.1,1.4399]
[1743280793376,1.41382121,1821.4,1821.1,1.4399]
[1743280793577,2.51231121,1821.4,1821.1,2.53853]
[1743280793782,1.09855,1821.3,1821.1,1.4399]
[1743280793980,1.41382121,1821.4,1821.2,2.56928]
[1743280794182,4.62162121,1821.4,1821.2,1.4707]
[1743280794575,1.09853,1821.3,1821.2,1.4707]
[1743280794777,1.09867,1821.1,1820.9,3.8951]
[1743280794975,1.09867,1821.1,1820.9,6.8588]
[1743280795170,1.4553,1821.0,1820.9,8.3295]
[1743280795680,3.21602121,1821.4,1820.9,10.8295]
[1743280795881,1.4684,1821.9,1821.3,3.2078]
[1743280796078,1.4684,1821.9,1821.6,1.0983]
[1743280796284,1.4684,1821.9,1821.8,1.09823]
[1743280796578,1.4484,1822.2,1821.7,3.652]
[1743280796878,1.09815,1822.0,1821.8,1.4675]
[1743280797180,1.09813,1822.0,1821.8,1.47572121]
[1743280797379,1.47662121,1822.1,1821.8,1.47572121]
[1743280797879,2.57469121,1822.1,1821.8,2.57391121]
[1743280798080,0.00822121,1822.1,1822.0,1.09811]
[1743280798478,0.00822121,1822.1,1821.9,2.56564]
[1743280798877,1.43372121,1822.1,1821.9,2.56564]
[1743280799078,2.53179121,1822.1,1821.9,1.4675]
[1743280799271,1.09817,1821.9,1821.8,0.00822121]
[1743280800875,2.52367,1821.9,1821.8,0.00822121]
[1743280803585,1.4255,1821.9,1821.8,0.00822121]
[1743280803778,1.4255,1821.9,1821.8,1.10645121]
[1743280804088,1.4255,1821.9,1821.8,0.00822121]
[1743280804089,2.52367,1821.9,1821.8,0.00822121]
[1743280804276,2.52367,1821.9,1821.8,1.45662121]
[1743280814289,1.4255,1821.9,1821.8,2.55485121]
[1743280814483,1.4255,1821.9,1821.8,1.45662121]
[1743280814693,2.52367,1821.9,1821.8,1.45662121]
[1743280815381,1.4255,1821.9,1821.8,2.55485121]
[1743280815591,2.52367,1821.9,1821.8,1.45662121]
[1743280815791,1.4255,1821.9,1821.8,2.55485121]
[1743280815995,1.4255,1821.9,1821.8,1.45662121]
[1743280816294,2.52367,1821.9,1821.8,1.45662121]
[1743280817396,0.00822121,1822.1,1822.0,1.09811]
[1743280817594,0.00822121,1822.1,1822.0,7.95791]
[1743280820093,0.00822121,1822.1,1822.0,4.75011]
[1743280820292,1.10627121,1822.1,1822.0,6.8598]
[1743280820498,1.10627121,1822.1,1822.0,5.156]
[1743280820901,1.10627121,1822.1,1822.0,6.25411]
[1743280821902,0.00822121,1822.1,1822.0,6.25411]
[1743280822098,0.00822121,1822.1,1822.0,9.46191]
[1743280822599,6.0359,1822.5,1822.3,1.09791]
[1743280822600,1.79726,1822.5,1822.3,1.09791]
[1743280822902,1.79726,1822.5,1822.4,1.3628]
[1743280824197,3.28096,1822.5,1822.4,1.3628]
[1743280824591,3.28091,1822.5,1822.4,1.3628]
[1743280824795,3.28091,1822.5,1822.4,2.46067]
[1743280824995,3.28091,1822.5,1822.4,1.3628]
[1743280825397,3.28091,1822.5,1822.4,2.46067]
[1743280825705,0.00822121,1822.6,1822.5,1.09781]
[1743280825898,0.00822121,1822.6,1822.5,2.49641]
[1743280826603,0.00822121,1822.6,1822.5,3.23941]
[1743280828002,0.00822121,1822.6,1822.5,1.3986]
[1743280828303,1.09799,1822.2,1822.1,6.8598]
[1743280828495,7.36963121,1822.6,1822.0,2.1416]
[1743280828803,3.2078,1822.2,1821.8,0.00822121]
[1743280829003,1.09817,1821.9,1821.8,0.00822121]
[1743280832306,2.8522,1822.1,1821.8,0.00822121]
[1743280832512,3.95027,1822.1,1821.9,1.09815]
[1743280832707,3.95025,1822.1,1822.0,1.4598]
[1743280833013,4.30579,1822.2,1822.0,2.55788]
[1743280833915,1.09799,1822.2,1822.0,2.55788]
[1743280834117,2.8468,1822.5,1822.0,1.4598]
[1743280834413,1.09803,1822.2,1822.0,2.55791]
[1743280834914,2.49803,1822.2,1822.0,2.55791]
[1743280836513,1.09817,1821.9,1821.8,0.00822121]
[1743280836812,3.2078,1821.9,1821.6,1.3798]
[1743280837014,1.09829,1821.7,1821.6,1.3798]
[1743280837411,1.84599,1821.7,1821.6,1.3798]
[1743280838714,1.09835,1821.6,1821.5,0.00822121]
[1743280839017,1.09835,1821.6,1820.8,0.43678745]
[1743280839018,1.09869,1821.1,1820.9,54.369]
[1743280839215,1.09869,1821.1,1820.9,55.7663]
[1743280839413,3.2078,1821.3,1820.9,55.7663]
[1743280839414,1.09871,1821.0,1820.9,5.0493]
[1743280839917,2.58395,1821.2,1820.9,6.14804]
[1743280840116,0.00822121,1821.1,1820.9,6.14804]
[1743280840418,0.00822121,1821.1,1820.9,6.14803]
[1743280840711,0.00822121,1821.1,1821.0,4.30651]
[1743280840918,0.00822121,1821.1,1821.0,2.49601]
[1743280841312,0.00822121,1821.1,1821.0,1.3973]
[1743280842524,1.10687121,1821.1,1821.0,1.3973]
[1743280842712,2.47567121,1821.1,1821.0,1.3973]
[1743280844016,1.37702121,1821.1,1821.0,2.49601]
[1743280844227,0.00822121,1821.1,1821.0,2.49601]
[1743280844519,0.00822121,1821.1,1821.0,1.3973]
[1743280844719,0.00822121,1821.1,1821.0,2.49601]
[1743280844920,0.00822121,1821.1,1821.0,1.3973]
[1743280845120,1.10687121,1821.1,1821.0,1.3973]
[1743280850423,0.00822121,1821.1,1820.8,7.95863]
[1743280850626,2.59756,1821.0,1820.9,1.4027]
[1743280853123,1.09885,1820.8,1820.6,5.02701]
[1743280853326,1.09889,1820.7,1820.6,7.5811]
[1743280853625,2.60119,1820.7,1820.6,7.5811]
[1743280854121,2.60119,1820.7,1820.6,3.9281]
[1743280854325,2.60119,1820.7,1820.6,3.2078]
[1743280855227,3.8996,1820.9,1820.6,3.2078]
[1743280855422,1.0988,1820.9,1820.7,2.49687]
[1743280855620,1.09883,1820.8,1820.7,1.398]
[1743280855821,1.0988,1820.9,1820.7,2.49687]
[1743280856022,1.09883,1820.8,1820.7,1.398]
[1743280856216,1.09883,1820.8,1820.7,2.49689]
[1743280856920,1.09883,1820.8,1820.7,1.398]
[1743280859929,0.6918,1821.0,1820.7,1.398]
[1743280859930,0.00822121,1821.1,1821.0,1.09871]
[1743280860126,0.00822121,1821.1,1821.0,6.8608]
[1743280860332,0.00822121,1821.1,1821.0,9.36301]
[1743280861427,2.1896,1821.5,1821.0,10.7643]
[1743280861632,3.2078,1821.6,1821.4,1.09843]
[1743280861833,4.30615,1821.6,1821.5,1.4035]
[1743280862137,5.81165,1821.6,1821.5,1.4035]
[1743280862931,2.60385,1821.6,1821.5,1.4035]
[1743280864630,1.5055,1821.6,1821.4,0.00822121]
[1743280865135,1.09841,1821.5,1821.4,1.37482121]
[1743280865335,1.83501,1821.5,1821.4,1.37482121]
[1743280866840,0.7366,1821.5,1821.4,1.37482121]
[1743280867045,1.83501,1821.5,1821.4,1.37482121]
[1743280867240,3.23961,1821.5,1821.4,1.37482121]
[1743280867636,2.1412,1821.5,1821.4,2.47329121]
[1743280867837,3.94552121,1821.7,1821.6,1.09835]
[1743280868038,3.94552121,1821.7,1821.4,1.37482121]
[1743280868039,0.00822121,1821.7,1821.5,5.81047]
[1743280868240,0.00822121,1821.7,1821.6,1.5043]
[1743280868435,1.10651121,1821.7,1821.6,1.5043]
[1743280868641,0.00822121,1821.7,1821.6,2.60265]
[1743280869141,1.48452121,1821.7,1821.6,2.60265]
[1743280869942,0.00822121,1821.7,1821.6,2.60265]
[1743280872145,0.00822121,1821.7,1821.6,6.25565]
[1743280872642,1.10651121,1821.7,1821.6,5.1573]
[1743280872835,1.83171121,1821.7,1821.6,5.1573]
[1743280873041,1.09841,1821.5,1821.4,0.75962121]
[1743280873234,1.09841,1821.5,1821.4,1.38002121]
[1743280873441,4.30621,1821.5,1821.4,0.00822121]
[1743280878250,1.09841,1821.5,1821.4,1.37752121]
[1743280878951,2.52161,1821.5,1821.4,0.00822121]
[1743280879448,2.52161,1821.5,1821.4,1.37752121]
[1743280879851,2.52161,1821.5,1821.4,0.00822121]
[1743280880440,1.09859,1821.2,1821.1,1.3693]
[1743280880648,4.30639,1821.2,1821.1,1.3693]
[1743280880946,4.30639,1821.2,1820.8,7.95863]
[1743280880947,1.09877,1820.9,1820.8,7.95863]
[1743280881152,1.09875,1821.0,1820.8,4.75083]
[1743280881544,0.7489,1821.1,1820.8,3.652]
[1743280881746,1.09871,1821.0,1820.8,3.652]
[1743280881950,1.09871,1821.0,1820.8,4.75081]
[1743280882150,2.49821,1821.0,1820.9,1.4859]
[1743280884059,3.23191,1821.0,1820.9,1.4859]
[1743280885062,1.09883,1820.8,1820.7,3.653]
[1743280885358,1.09883,1820.8,1820.7,1.5121]
[1743280887261,2.57041,1820.9,1820.7,1.5121]
[1743280887561,1.09883,1820.8,1820.7,1.5121]
[1743280887762,2.52703,1820.8,1820.7,1.5121]
[1743280890258,1.4282,1820.8,1820.7,1.5121]
[1743280890453,2.52703,1820.8,1820.7,1.5121]
[1743280892463,2.52703,1820.8,1820.7,2.61099]
[1743280892656,0.7337,1821.0,1820.8,1.09877]
[1743280892972,1.09877,1820.9,1820.8,2.52057]
[1743280893163,1.09877,1820.9,1820.8,1.4218]
[1743280893365,2.53827,1820.9,1820.8,1.4218]
[1743280894262,1.09877,1820.9,1820.8,1.4218]
[1743280898373,2.53826,1821.0,1820.8,2.52061]
[1743280898576,1.09877,1820.9,1820.8,2.52061]
[1743280898766,1.09877,1820.9,1820.8,1.4218]
[1743280900070,2.53825,1821.0,1820.8,2.52063]
[1743280900477,2.53825,1821.0,1820.9,1.4232]
[1743280902072,1.4395,1821.0,1820.9,2.52197]
[1743280902279,1.84758,1821.1,1820.9,2.52197]
[1743280902479,2.242,1821.1,1821.0,2.49341]
[1743280902773,1.09862,1821.2,1821.0,2.49337]
[1743280902971,2.59172,1821.2,1821.1,1.3947]
[1743280903473,1.09862,1821.2,1821.1,1.3947]
[1743280904076,2.59172,1821.2,1821.1,1.3947]
[1743280905076,1.09871,1821.0,1820.9,0.7329]
[1743280905378,1.09871,1821.0,1820.9,2.1478]
[1743280905878,3.16591,1821.0,1820.9,2.1478]
[1743280906780,3.16591,1821.0,1820.9,1.4149]
[1743280909077,2.0672,1821.0,1820.9,2.51367]
[1743280909284,3.16591,1821.0,1820.9,1.4149]
[1743280913782,1.09877,1820.9,1820.8,3.652]
[1743280914078,1.09883,1820.8,1820.7,0.6873]
[1743280914283,1.09883,1820.8,1820.7,1.5066]
[1743280915378,3.2078,1820.8,1820.4,3.9221]
[1743280915584,1.09901,1820.5,1820.4,6.8598]
[1743280916176,1.09901,1820.5,1820.4,8.3664]
[1743280916377,2.60291,1820.5,1820.4,8.3664]
[1743280917286,2.60291,1820.5,1820.4,4.7144]
[1743280919378,2.60291,1820.5,1820.4,1.5066]
[1743280919589,2.60291,1820.5,1820.4,4.7144]
[1743280920187,3.21602121,1820.8,1820.4,4.7144]
[1743280920394,1.10708121,1820.8,1820.6,4.30672]
[1743280920581,1.10705121,1820.8,1820.7,2.1541]
[1743280922186,1.10705121,1820.8,1820.7,3.25299]
[1743280922492,1.10705121,1820.8,1820.7,2.1541]
[1743280922890,1.10705121,1820.8,1820.7,1.4087]
[1743280926894,1.09897,1820.6,1820.5,1.4306]
[1743280927396,1.81507,1820.6,1820.5,1.4306]
[1743280932101,2.53557,1820.6,1820.5,1.4306]
[1743280933107,1.09907,1820.4,1820.3,3.2078]
[1743280936702,1.09913,1820.3,1820.2,4.6914]
[1743280938102,1.3817,1820.5,1820.2,4.6914]
[1743280938103,1.0991,1820.4,1820.2,5.79058]
[1743280938308,1.0991,1820.4,1820.3,1.4205]
[1743280938611,1.09907,1820.4,1820.3,1.4205]
[1743280943013,2.48297,1820.4,1820.3,1.4205]
[1743280946207,1.10709121,1820.8,1820.6,1.09895]
[1743280946407,0.00822121,1820.8,1820.7,2.59889]
[1743280946613,0.00822121,1820.8,1820.7,1.5]
[1743280946614,1.42622121,1820.8,1820.7,1.5]
[1743280947111,2.52505121,1820.8,1820.7,1.5]
[1743280947614,1.09913,1820.3,1820.2,3.652]
[1743280948507,1.09913,1820.3,1820.2,4.75119]
[1743280948707,1.09904,1820.5,1820.3,1.09913]
[1743280949006,4.6109,1820.6,1820.2,5.0851]
[1743280949211,2.5485,1820.4,1820.3,1.4331]
[1743280977522,2.74784,1820.3,1820.0,3.2078]
[1743280977733,2.74784,1820.3,1820.1,1.3669]
[1743280977734,1.78459,1820.2,1820.1,1.3669]
[1743280977936,3.15269,1820.2,1820.1,1.3669]
[1743280978233,1.09925,1820.1,1820.0,6.8578]
[1743280978432,2.48165,1820.1,1820.0,8.3622]
[1743280978728,1.09937,1819.9,1819.7,4.30725]
[1743280978931,1.09937,1819.9,1819.8,5.1544]
[1743280979127,1.09937,1819.9,1819.8,1.5044]
[1743280979326,2.48177,1819.9,1819.8,1.5044]
[1743280979525,1.09953,1819.7,1819.5,4.30741]
[1743280979727,1.09953,1819.7,1819.6,1.5044]
[1743280980233,3.21266121,1819.8,1819.6,2.60392]
[1743280980434,3.21270121,1819.8,1819.6,2.60394]
[1743280980731,0.00822121,1819.8,1819.7,2.60389]
[1743280980942,0.00822121,1819.8,1819.7,5.1544]
[1743280981126,0.00822121,1819.8,1819.7,6.25389]
[1743280981327,0.00822121,1819.8,1819.7,5.1544]
[1743280982634,1.10765121,1819.8,1819.7,8.3622]
[1743280983029,0.00822121,1819.8,1819.7,8.3622]
[1743280983229,1.10765121,1819.8,1819.7,8.3622]
[1743280983430,0.00822121,1819.8,1819.7,8.3622]
[1743280983730,1.10765121,1819.8,1819.7,8.3622]
[1743280985926,0.00822121,1819.8,1819.7,9.46169]
[1743280986135,1.10765121,1819.8,1819.7,8.3622]
[1743280986629,0.00822121,1819.8,1819.7,9.46169]
[1743280986930,3.2078,1820.4,1819.7,10.8622]
[1743280987136,3.2078,1820.6,1820.1,3.2078]
[1743280987326,1.09901,1820.5,1820.3,1.09909]
[1743280987526,1.09901,1820.5,1820.2,6.4206]
[1743280987527,3.2078,1820.6,1820.4,1.4177]
[1743280987727,1.09887,1820.8,1820.5,3.2078]
[1743280987929,1.09889,1820.7,1820.6,0.6885]
[1743280988129,1.09889,1820.7,1820.6,2.1062]
[1743280988733,0.00822121,1820.8,1820.6,2.1062]
[1743280988734,1.10709121,1820.8,1820.6,2.1062]
[1743280988932,1.10709121,1820.8,1820.7,1.4177]
[1743280990436,0.00822121,1820.8,1820.7,1.4177]
[1743280991231,1.10705121,1820.8,1820.7,1.4177]
[1743280992029,0.00822121,1820.8,1820.7,2.51659]
[1743280992539,1.10705121,1820.8,1820.7,1.4177]
[1743280993636,0.00822121,1820.8,1820.7,1.4177]
[1743280993939,0.00822121,1820.8,1820.7,2.51659]
[1743280994436,0.00822121,1820.8,1820.7,5.72439]
[1743280994638,0.00822121,1820.8,1820.7,6.27399]